Cogmind - Beta 16.1 @@@ ROGUE MODE // 2026.02.12 @ 22:12:37 Player: TheSkyeDoctor Result: Destroyed by G-47 Trooper with Particle Gun Performance ------------- Evolutions (2) 1000 Regions Visited (4) 800 Robots Destroyed (30) 150 Value Destroyed (509) 509 Prototype IDs (0) 0 Alien Tech Used (0) 0 Bonus (0) 0 TOTAL SCORE: 2459 Bonus ------- None Cogmind --------- Core Integrity 0/550 Matter 486/500 Energy 12/100 System Corruption 0% Temperature Cool (27) Movement Flying (832) Ox10 Location -8/Materials Parts ------- > --- POWER (1) -------- (None) > --- PROPULSION (4) --- VTOL Module VTOL Module > --- UTILITY (4) ------ Huge Storage Unit High-capacity Matter Pod > --- WEAPON (2) ------- (None) > --- INVENTORY (25) --- Ion Engine Deuterium Engine Wheel Wheel Wheel Wheel VTOL Module VTOL Module Huge Storage Unit Weapon Shielding Shield Generator Plasma Cutter Peak State ------------ > --- POWER ------------ Light Nuclear Core > --- PROPULSION ------- Armored Wheel Armored Wheel Armored Wheel Armored Wheel > --- UTILITY ---------- Huge Storage Unit High-capacity Matter Pod ECM Suite Weapon Shielding > --- WEAPON ----------- Beam Cannon Grenade Launcher > --- INVENTORY -------- Ion Engine Deuterium Engine Wheel Wheel Wheel Wheel Wheel Wheel VTOL Module VTOL Module VTOL Module VTOL Module Huge Storage Unit Weapon Shielding Plasma Cutter [Rating: 19] Favorites ----------- Power Ion Engine Engine Ion Engine Power Core Light Nuclear Core Propulsion Armored Wheel Wheel Armored Wheel Flight Unit VTOL Module Utility Huge Storage Unit Device ECM Suite Storage Huge Storage Unit Protection Weapon Shielding Weapon Beam Cannon Energy Gun Medium Laser Energy Cannon Beam Cannon Ballistic Gun Light Assault Rifle Launcher Grenade Launcher Slashing Weapon Axe Build | -11 -10 -9 -9 -8 ------- Run | Yrd Mat Mat Min Mat Slots Evolved 4 | . . 2 . 2 Power . | . . . . . Propulsion 2 | . . 2 . . Utility 2 | . . . . 2 Weapon . | . . . . . Parts Attached 25 | 7 5 4 1 8 Power 2 | 1 . . . 1 Engine 1 | 1 . . . . Core 1 | . . . . 1 Reactor . | . . . . . Propulsion 11 | 2 4 2 . 3 Treads . | . . . . . Leg . | . . . . . Wheel 7 | 2 2 2 . 1 Hover . | . . . . . Flight 4 | . 2 . . 2 Utility 6 | 2 1 1 . 2 Device 2 | 1 . . . 1 Storage 3 | 1 1 1 . . Processor . | . . . . . Hackware . | . . . . . Protection 1 | . . . . 1 Artifact . | . . . . . Weapon 6 | 2 . 1 1 2 Energy Gun 1 | 1 . . . . Energy Cannon 1 | . . 1 . . Ballistic Gun 2 | 1 . . . 1 Ballistic Cannon . | . . . . . Launcher 1 | . . . 1 . Special Weapon . | . . . . . Impact Weapon . | . . . . . Slashing Weapon 1 | . . . . 1 Piercing Weapon . | . . . . . Special Melee Weapon . | . . . . . Unidentified Prototypes . | . . . . . Parts Lost 17 | . . 3 . 14 Power 2 | . . . . 2 Propulsion 6 | . . . . 6 Utility 3 | . . 1 . 2 Weapon 6 | . . 2 . 4 Highest Loss Streak 12 | . . 2 . 12 To Critical Strikes . | . . . . . Average Backups 12 | 1 8 15 15 15 Power 1 | . 1 1 2 1 Propulsion 7 | . 4 10 10 9 Utility 2 | . 1 3 3 2 Weapon . | . . . . . Tool/Special . | . . . . . Unused Backups 9 | . . . . 9 Power 2 | . . . . 2 Propulsion 3 | . . . . 3 Utility 3 | . . . . 3 Weapon . | . . . . . Tool/Special 1 | . . . . 1 Average Slot Usage (%) 96 | . 100 93 96 95 Engine 7 | . 14 11 11 1 Core 2 | . . . . 6 Wheel 36 | . 28 38 44 33 Device 6 | . 14 2 . 9 Storage 18 | . 14 19 22 18 Protection 3 | . . . . 8 Energy Gun 3 | . 14 3 . . Energy Cannon 7 | . . 7 11 8 Ballistic Gun 4 | . 14 11 . . Launcher 5 | . . . 7 8 Peak Build Rating 19 | 7 11 15 15 19 Average Rating 13 | 5 7 13 14 17 On Entrance 9 | . 7 11 14 15 Avg Prop Armor Cover (%) . | . . . . . Naked Turns . | . . . . . Heaviest Build 98 | 14 89 93 95 98 Greatest Support 48 | 20 24 48 48 48 Greatest Overweight (x) 8 | . 4 3 1 8 Average Overweight (x) 1 | . 2 1 1 1 Largest Inventory Capacity 25 | 8 25 25 25 25 Average Capacity 22 | 7 21 25 25 25 Most Carried 18 | 5 18 18 16 17 Average Carried 12 | 1 8 15 15 15 Final Capacity 25 | 8 25 25 25 25 Final Carried 18 | 3 18 15 16 12 Class Distribution -------------------- 100% | Mutant Dominant Class ---------------- Mutant | -10/Materials Mutant | -9/Materials Mutant | -9/Mines Mutant | -8/Materials Resources | -11 -10 -9 -9 -8 ----------- Run | Yrd Mat Mat Min Mat Matter Collected 736 | 294 16 293 11 122 Remotely . | . . . . . Salvage Created 778 | 164 118 146 . 350 Parts 58 | 9 6 11 . 32 Haulers Intercepted 1 | . . . . 1 Recyclers Shooed 2 | 1 . . . 1 Parts Field Recycled . | . . . . . Retrieved Matter . | . . . . . Parts Self-Destructed . | . . . . . Prevented . | . . . . . Parts Restored . | . . . . . Kills | -11 -10 -9 -9 -8 ------- Run | Yrd Mat Mat Min Mat Combat Hostiles Destroyed 18 | . 4 5 . 9 Melee 1 | . . . . 1 Guns 7 | . 4 3 . . Cannons 5 | . . 2 . 3 AOE 5 | . . . . 5 Classes Destroyed 8 | 3 3 . . 2 Worker 4 | 2 . . . 2 Tunneler 3 | 3 . . . . Hauler 1 | . . . . 1 Recycler 2 | 1 . . . 1 Watcher 2 | . 1 . . 1 Swarmer 11 | . 3 3 . 5 Grunt 5 | . 1 2 . 2 Sentry 2 | . . . . 2 Best Kill Streak 5 | 5 3 5 . 5 Combat Bots Only 5 | . 3 5 . 3 Max Kills in Single Turn 3 | 1 1 2 . 3 Gunslinging 1 | . . 1 . . Exploded 3 | . . . . 3 Melee 1 | . . . . 1 Uniques/NPCs Destroyed . | . . . . . Combat | -11 -10 -9 -9 -8 -------- Run | Yrd Mat Mat Min Mat Hostile Shots Fired 234 | . 21 63 . 150 Missed 62 | . 5 17 . 40 Hits 172 | . 16 46 . 110 Projectile 172 | . 16 46 . 110 Critical Strikes 5 | . . . . 5 Actively Blocked 1 | . . . . 1 Damage Taken 2233 | . 155 546 . 1532 Core 640 | . 33 56 . 551 Absorbed by Shields . | . . . . . Redirected to Shielding 50 | . . . . 50 Core Remaining (%) 90 | 100 86 . 86 . Volleys Fired 78 | 24 14 21 . 19 Largest 2 | 2 2 2 . 2 Hottest 90 | 70 70 80 . 90 Shots Fired 149 | 48 28 42 . 31 Gun 107 | 48 28 28 . 3 Cannon 31 | . . 14 . 17 Launcher 11 | . . . . 11 Special . | . . . . . Kinetic 62 | 24 14 21 . 3 Thermal 76 | 24 14 21 . 17 Explosive 11 | . . . . 11 Electromagnetic . | . . . . . Robot Hit Streak 10 | 8 10 10 . 10 Robot Miss Streak 5 | 3 5 3 . 3 Penetration Max . | . . . . . Secondary Targets 2 | . . 2 . . Max Gunslinging Chain 1 | . . 1 . . Shots Hit Robots 98 | 31 18 28 . 21 Core Hits 45 | 8 6 13 . 18 Critical Kills . | . . . . . Critical Parts Destroyed . | . . . . . Critical Strikes . | . . . . . Melee Attacks 4 | . . . . 4 Impact . | . . . . . Slashing 4 | . . . . 4 Piercing . | . . . . . Sneak Attacks . | . . . . . Combat Hostiles . | . . . . . Follow-up Attacks . | . . . . . Damage Inflicted 1759 | 344 180 346 . 889 Guns 727 | 344 180 189 . 14 Cannons 384 | . . 157 . 227 Explosions 578 | . . . . 578 Melee 67 | . . . . 67 Ramming 3 | . . . . 3 Kinetic 332 | 122 82 114 . 14 Thermal 779 | 222 98 232 . 227 Explosive 578 | . . . . 578 Electromagnetic . | . . . . . Impact . | . . . . . Slashing 67 | . . . . 67 Piercing . | . . . . . Highest Corruption . | . . . . . Average Corruption . | . . . . . Corruption Purged . | . . . . . Corruption Blocked . | . . . . . Overload Shots . | . . . . . Overflow Damage 68 | . . . . 68 Projectiles . | . . . . . Explosions 41 | . . . . 41 Melee 27 | . . . . 27 Knockbacks 1 | . . . . 1 Impact 1 | . . . . 1 Kinetic . | . . . . . Secondary . | . . . . . Self-Inflicted Damage 85 | . . . . 85 Shots 4 | . . . . 4 Rammed 2 | . . . . 2 Targets Rammed 2 | . . . . 2 Kicked . | . . . . . Crushed . | . . . . . Highest Temperature 305 | 90 136 305 . 185 Average Temperature 66 | 35 51 121 . 50 Received Heat Transfer 888 | . 48 219 . 621 Siege Activations . | . . . . . Martial Activations . | . . . . . Shielding Activations . | . . . . . Robots Disrupted . | . . . . . Combat Hostiles . | . . . . . Robots Corrupted . | . . . . . Combat Hostiles . | . . . . . Parts Fried . | . . . . . Impact Corruptions . | . . . . . Robots Melted . | . . . . . Combat Hostiles . | . . . . . Parts Melted 3 | 1 1 1 . . Heat Transferred 1998 | 666 296 555 . 481 Parts Sabotaged . | . . . . . Parts Stolen . | . . . . . Parts Stripped . | . . . . . Power Chain Reactions . | . . . . . Alert | -11 -10 -9 -9 -8 ------- Run | Yrd Mat Mat Min Mat Maximum Alert Level . | . . . . . Low Security (%) 100 | 100 100 100 100 100 Level 1 . | . . . . . Level 2 . | . . . . . Level 3 . | . . . . . Level 4 . | . . . . . Level 5 . | . . . . . High Security . | . . . . . Max Security . | . . . . . Peak Influence 143 | 15 70 100 3 143 Initial 3 | . . . 3 . Average 36 | 2 23 44 . 74 Influence Increases 611 | 30 107 120 . 354 Destroy 0b10 Robot/C 360 | . 80 100 . 180 Destroy 0b10 Robot/NC 60 | 30 5 . . 25 Destroy Leader 96 | . 22 20 . 54 Disable Machine 30 | . . . . 30 Destroy Structure 65 | . . . . 65 Influence Decreases 611 | 30 107 110 10 354 Entered New Map 7 | . . . 7 . Time Decay 458 | 30 107 90 3 228 Lost Part 146 | . . 20 . 126 Squads Dispatched 4 | . 2 . . 2 Investigation 1 | . 1 . . . Extermination . | . . . . . Reinforcement 3 | . 1 . . 2 Assault . | . . . . . Garrison . | . . . . . Intercept . | . . . . . Searches Triggered . | . . . . . Construction Impeded . | . . . . . Haulers Reinforced . | . . . . . Active Scanning Responses . | . . . . . Cargo Convoy Interrupts . | . . . . . Stealth | -11 -10 -9 -9 -8 --------- Run | Yrd Mat Mat Min Mat Distress Signals 2 | . . 1 . 1 Communications Jammed . | . . . . . Distress Signals . | . . . . . Times Spotted 46 | . 6 13 . 27 Peak Tracking Total 10 | . 3 6 . 10 Tactical Retreats 1 | . . . . 1 ECM-based Alert Blocks 2 | . . . . 2 Traps | -11 -10 -9 -9 -8 ------- Run | Yrd Mat Mat Min Mat Traps Triggered 2 | . 1 1 . . Indirectly . | . . . . . Trap Hack Attempts . | . . . . . Triggered . | . . . . . Disarmed . | . . . . . Reprogrammed . | . . . . . Reused . | . . . . . Traps Extracted . | . . . . . Installed . | . . . . . Triggered . | . . . . . Machines | -11 -10 -9 -9 -8 ---------- Run | Yrd Mat Mat Min Mat Machines Disabled 2 | . . . . 2 Max in Single Turn 1 | . . . . 1 Machines Repaired . | . . . . . Machines Dismantled . | . . . . . Machines Sabotaged . | . . . . . Overloaded Fab Kills . | . . . . . Hacking | -11 -10 -9 -9 -8 --------- Run | Yrd Mat Mat Min Mat Machines Accessed 7 | . 3 . . 4 Terminals 7 | . 3 . . 4 Fabricators . | . . . . . Repair Stations . | . . . . . Recycling Units . | . . . . . Scanalyzers . | . . . . . Garrison Access . | . . . . . Total Hacks 12 | . 4 . . 8 Successful . | . . . . . Failed 12 | . 4 . . 8 Catastrophic 8 | . 3 . . 5 Database Lockouts . | . . . . . Manual 12 | . 4 . . 8 Terminals 12 | . 4 . . 8 Fabricators . | . . . . . Repair Stations . | . . . . . Recycling Units . | . . . . . Scanalyzers . | . . . . . Garrison Access . | . . . . . Terminal Hacks . | . . . . . Fabricator Hacks . | . . . . . Repair Station Hacks . | . . . . . Recycling Unit Hacks . | . . . . . Scanalyzer . | . . . . . Garrison Access Hacks . | . . . . . Unauthorized Hacks . | . . . . . Terminals . | . . . . . Fabricators . | . . . . . Repair Stations . | . . . . . Recycling Units . | . . . . . Scanalyzers . | . . . . . Garrison Access . | . . . . . Data Cores Recovered . | . . . . . Used . | . . . . . Hacking Detections 7 | . 3 . . 4 Full Trace Events . | . . . . . Feedback Events . | . . . . . Feedback Blocked . | . . . . . Robot Schematics Acquired . | . . . . . Robots Built . | . . . . . Authchips . | . . . . . Time . | . . . . . Total Robot Build Rating . | . . . . . Part Schematics Acquired . | . . . . . Parts Built . | . . . . . Authchips . | . . . . . Time . | . . . . . Total Part Build Rating . | . . . . . Part Studies Acquired . | . . . . . Parts Repaired . | . . . . . Time . | . . . . . Parts Recycled . | . . . . . Recycled Matter . | . . . . . Retrieved Matter . | . . . . . Retrieved Components . | . . . . . Parts Scanalyzed . | . . . . . Part Schematics Acquired . | . . . . . Parts Damaged . | . . . . . Bothacking | -11 -10 -9 -9 -8 ------------ Run | Yrd Mat Mat Min Mat Used RIF Installer . | . . . . . Robots Hacked . | . . . . . Non-combat . | . . . . . Combat . | . . . . . Robot Hacks Applied . | . . . . . Relay Couplers Released . | . . . . . Fabnet Peak Effective % . | . . . . . Robots Rewired . | . . . . . Allies Hacked . | . . . . . Hacks Repelled . | . . . . . Allies | -11 -10 -9 -9 -8 -------- Run | Yrd Mat Mat Min Mat Total Allies . | . . . . . Largest Group . | . . . . . Highest-Rated Group . | . . . . . Highest-Rated Ally . | . . . . . Total Orders . | . . . . . Ally Attacks . | . . . . . Total Damage . | . . . . . Kills . | . . . . . Allies Corrupted . | . . . . . Allies Melted . | . . . . . Intel | -11 -10 -9 -9 -8 ------- Run | Yrd Mat Mat Min Mat Active Infowar (turns) 925 | 78 270 51 . 526 Seismic 399 | 78 270 51 . . ECM 526 | . . . . 526 Robot Analysis Total . | . . . . . Derelict Logs Recovered 1 | . . . 1 . Drone Launches . | . . . . . Drone Recoveries . | . . . . . Exploration | -11 -10 -9 -9 -8 ------------- Run | Yrd Mat Mat Min Mat Turns Passed 1577 | 166 270 251 350 540 Spaces Moved 1059 | 103 161 166 331 298 Core 2 | 2 . . . . Treads . | . . . . . Legs . | . . . . . Wheels 1057 | 101 161 166 331 298 Hover . | . . . . . Flight . | . . . . . Fastest Speed 50 | 50 80 105 105 105 Average Speed 109 | 79 120 111 105 118 Slowest Speed 200 | 80 140 135 105 200 Overloaded Moves . | . . . . . Propulsion Burnouts . | . . . . . Robots Hopped . | . . . . . Potential Cave-ins . | . . . . . Cave-ins Triggered . | . . . . . Exploration Rate (%) 32 | 4 29 20 71 36 Regions Visited 4 Branch Regions 1 Pre-discovered Areas . | . . . . . Known Exits Taken . | . . . . . Unknown Exits Taken 4 | 1 1 1 1 . Scrap Searched 2 | . . . 2 . Spaces Dug . | . . . . . Terrain Destroyed 71 | . . . . 71 Melee . | . . . . . Projectile . | . . . . . AOE 71 | . . . . 71 Terrain Rammed . | . . . . . Walls Destroyed . | . . . . . Machines Disabled . | . . . . . Actions | -11 -10 -9 -9 -8 --------- Run | Yrd Mat Mat Min Mat Total 1326 | 143 209 193 333 448 Wait 126 | . 13 2 . 111 Move 1055 | 102 160 165 330 298 Hop . | . . . . . Pick Up 34 | 10 16 1 2 5 Fast Attach . | . . . . . Attach 21 | 7 . 4 1 9 Detach . | . . . . . Swap 5 | . 5 . . . Drop 1 | . 1 . . . Fire 78 | 24 14 21 . 19 Melee 4 | . . . . 4 Ram 2 | . . . . 2 Kick . | . . . . . Crush . | . . . . . Escape Stasis . | . . . . . Rewire . | . . . . . Trap . | . . . . . Miscellaneous . | . . . . . Route ------- -11/Scrapyard -10/Materials -9/Materials -9/Mines -8/Materials History --------- Turn | Location | Event 19 | -11/Scrapyard | Discovered new exit (range 15) 167 | -11/Scrapyard | Entered Materials 304 | -10/Materials | Build established: Mutant 402 | -10/Materials | Discovered new exit (range 9) 437 | -10/Materials | Entered another Materials area 437 | -9/Materials | Evolved 2 slots: Propulsion x2 634 | -9/Materials | Discovered new exit (range 16) 688 | -9/Materials | Entered Mines 714 | -9/Mines | Learned Materials stockpile data 773 | -9/Mines | YI-UF0 nonchalantly dropped a Grenade Launcher on the ground 870 | -9/Mines | Found a hidden stash of uninstalled traps 1033 | -9/Mines | Discovered new exit (range 5) 1038 | -9/Mines | Entered Materials 1038 | -8/Materials | Evolved 2 slots: Utility x2 1436 | -8/Materials | Met 7R-MNS 1562 | -8/Materials | Core integrity fell below 50% 1573 | -8/Materials | Core integrity fell below 20% 1578 | -8/Materials | Destroyed by G-47 Trooper with Particle Gun Last Messages --------------- Beam Cannon destroyed. Weapon Shielding destroyed. Critical hit (Burn: +37). Minigun destroyed. U-05 Engineer lays Concrete. Acquired 10 matter. U-05 Engineer lays Concrete. Destroyed Flight Unit. S-10 Pest destroyed. U-05 Engineer lays Concrete. K-01 Serf collects debris. Wheel destroyed. K-01 Serf collects debris. Destroyed Flight Unit. S-10 Pest destroyed. K-01 Serf collects debris. Axe destroyed. ECM Suite destroyed. K-01 Serf collects debris. [Achievement: Back For More] Map ----- +----------------------------------------------------+ | ?????????????????????????????????????????????????? | | ???????????????????????]?????????????????????????? | | ?????????????????????????????????????????????????? | | ?????????????????????????????????????????????????? | | ?????????????????????????????????????????????????? | | ?????????????????????????????????????????????????? | | ?????????????????????????????????????????????????? | | ?????????????????????????????????????????????????? | | ?????????????????????????????????????????????????? | | ?????????????????????????????????????????????????? | | ?????????????????????????????????????????????????? | | ?????????????????????????????????????????????????? | | ?????????????????????????????????????????????????? | | ?????????????????????????????????????????????????? | | ???????????????????????#####?????????????????????? | | ??????????????????????? #?????????????????????? | | ??????????????????????? #?????????????????????? | | ??????????????????????? #?????????????????????? | | ???????????????????????# +?????????????????????? | | ???????????????????????# #?????????????????????? | | ??????????????########## k #?????????????????????? | | ??????????????# # #?????????????????????? | | ? ? ???????#### w =g= #?????????????????????? | | T =?????? a ! rggs%= #?????????????????????? | | ?????????# g % g *% #?????????????????????? | | ?????????? "# k[@###????????????????????? | | # #???????????????# *= !#????????????????????? | | # #??????????????## g ##???????????????????? | | # #??????????????# #???????????????????? | | + #??????????????##!! " ###??????????????????? | | # #???????????????#![ %!; #?????###??????????? | | # #???????????????###+#############T############ | | ? ????????????????#] + | | ## ####????????? ? # "" ##################### | | # # #???????? # """ #???????????????????? | | #???????? " + S" #???????????????????? | | ! ########### # #???????????????????? | | !%[# ! # # """"" #???????????????????? | | # ## ##* """"" #???????????????????? | | # ## ## """"" #???????????????????? | | # ## """ ## ## #???###??????????#### | | ## ## """ "" ## ###########??##"########???# ? | | ?# ## """ T" ## #?????????#### """ #???# ## | | ?# ## "" ## #??????#### ! "Y" ##### #! | | ##+## ## ##?????# # % + #! | | ########+### #?????# ! " """ # #! | | ## #######%!= """ # # | | ## % ! %!* " """ + + | | ## ####### [ = ####### | | ## ####### #????# ! [ | #?????## | +----------------------------------------------------+ Best States ------------- Heat Dissipation 31 Energy Generation 14 Energy Capacity 250 Matter Stores 500 Matter Capacity 500 Sight Range 16 Terrain Scan Density 10 ECM Strength 1 Weapon Shielding 33 Evasion (%) 44 Item Schematics ----------------- None Robot Schematics ------------------ None Fabricated ------------ Nothing Repaired ---------- Nothing Studied --------- None Alien Tech Used ----------------- None Achievements -------------- Back For More Challenges ------------ None Game ------ Seed ChargeHelicalDrive Manual? 0 Play Time 00:16:46 Cumulative 20.4 hours Start 2026.02.12 @ 21:57:59 End 2026.02.12 @ 22:12:37 Sessions 1 Manual Loads 0 Difficulty Rogue Special Mode None Game No. 50 Rogue 50 Adventurer 0 Explorer 0 Win Type - Total 0 Types 0/0/0/0/0/0/0/0/0/0 Lore% 17 Gallery% 24 Achievement% 20 Wizard Run 0 Options --------- Layout 1 ASCII 0 Keyboard 0 Movement Mouse Keybinds 0 Fullscreen 1 Font 24/Smallcaps Map View 50x35 Zoom Use 0% Tactical HUD 0 Map Filters NONE Filters NONE Steam 1 RUN: 3d8284c3-90e1-4fbb-a8f2-852bf1c00fb7